bitfinex/quotes_BTCUSD_20250523
["timestamp","ask_amount","ask_price","bid_price","bid_amount"]
[1747996790909,0.23944933,110870.0,110860.0,1.20263419]
[1747996791664,0.23944933,110870.0,110860.0,0.91427416]
[1747996791896,0.23944933,110870.0,110860.0,1.1936143]
[1747996792110,0.23944933,110870.0,110860.0,1.20263436]
[1747996792769,0.23944933,110870.0,110860.0,1.1936143]
[1747996792888,0.23944933,110870.0,110860.0,1.20263436]
[1747996793582,0.23944933,110870.0,110860.0,1.17557394]
[1747996793792,0.23944933,110870.0,110860.0,1.19361462]
[1747996794616,0.23944933,110870.0,110860.0,1.20263476]
[1747996795295,0.23944933,110870.0,110860.0,0.54751476]
[1747996795509,0.23944933,110870.0,110860.0,1.19679484]
[1747996795712,0.2484689,110870.0,110860.0,1.2058149]
[1747996795892,0.2484689,110870.0,110860.0,1.20581498]
[1747996796075,0.23944933,110870.0,110860.0,1.20581498]
[1747996796279,0.23944933,110870.0,110860.0,1.21483495]
[1747996796529,0.23944933,110870.0,110860.0,1.21483504]
[1747996797590,0.23944933,110870.0,110860.0,1.20581498]
[1747996797792,0.23944933,110870.0,110860.0,1.20585498]
[1747996798186,0.23944933,110870.0,110860.0,0.86580876]
[1747996800964,0.23043025,110870.0,110860.0,0.379]
[1747996801170,0.23043025,110870.0,110860.0,4e-05]
[1747996801346,0.23043025,110870.0,110860.0,0.64932]
[1747996801781,0.22141093,110870.0,110860.0,0.64932]
[1747996809290,0.22141093,110870.0,110860.0,0.65834038]
[1747996810396,0.22141093,110870.0,110860.0,0.64932]
[1747996810697,0.04101892,110870.0,110860.0,0.85678789]
[1747996810905,0.23042952,110870.0,110860.0,0.85678789]
[1747996811098,0.23944884,110870.0,110860.0,0.85678805]
[1747996811334,0.24846833,110870.0,110860.0,0.84776816]
[1747996811512,0.24846833,110870.0,110860.0,0.82972772]
[1747996811666,0.23944941,110870.0,110860.0,0.8477684]
[1747996812066,0.23944941,110870.0,110860.0,0.85678862]
[1747996812654,0.23944941,110870.0,110860.0,0.86580876]
[1747996814549,0.23944941,110870.0,110860.0,0.87482882]
[1747996814840,0.23944941,110870.0,110860.0,0.86580876]
[1747996815686,0.24846898,110870.0,110860.0,0.86580876]
[1747996815976,0.23944941,110870.0,110860.0,0.87482873]
[1747996816372,0.23944941,110870.0,110860.0,0.86580876]
[1747996816522,0.23944941,110870.0,110860.0,0.87482882]
[1747996816728,0.23944941,110870.0,110860.0,0.85678838]
[1747996818286,0.23944941,110870.0,110860.0,0.84776824]
[1747996819841,0.23944941,110870.0,110860.0,0.85678838]
[1747996819987,0.23944941,110870.0,110860.0,0.84776824]
[1747996822061,0.23944941,110870.0,110860.0,0.85678838]
[1747996826248,0.23042952,110870.0,110860.0,0.85678838]
[1747996826413,0.24846833,110870.0,110860.0,0.86580844]
[1747996826610,0.24846833,110870.0,110860.0,0.85678838]
[1747996827156,0.23944884,110870.0,110860.0,0.37096]
[1747996827358,0.24846824,110870.0,110860.0,0.569408]
[1747996827513,0.24846824,110870.0,110860.0,0.56940808]
[1747996827721,0.25748781,110870.0,110860.0,0.56940808]
[1747996828063,0.25748781,110870.0,110860.0,0.57842814]
[1747996828271,0.25748781,110870.0,110860.0,0.56940808]
[1747996828469,0.24846889,110870.0,110860.0,0.83972808]
[1747996828650,0.23944932,110870.0,110860.0,0.83972808]
[1747996829078,0.24846889,110870.0,110860.0,0.84874814]
[1747996830389,0.0168,110870.0,110860.0,0.86678784]
[1747996830597,0.001,110870.0,110860.0,0.86678784]
[1747996833493,0.01001884,110870.0,110860.0,0.59646784]
[1747996833701,0.001,110870.0,110860.0,0.86678784]
[1747996835651,0.01001892,110870.0,110860.0,0.86678784]
[1747996836295,0.0322,110870.0,110860.0,1.25602784]
[1747996836427,0.04121884,110870.0,110860.0,1.25602784]
[1747996836635,0.05023776,110870.0,110860.0,1.25602784]
[1747996837032,0.01903776,110870.0,110860.0,1.25602784]
[1747996837478,0.01001884,110870.0,110860.0,1.25602784]
[1747996837688,0.02571884,110870.0,110860.0,1.25602784]
[1747996837852,0.05003784,110870.0,110860.0,1.25602784]
[1747996838949,0.05003784,110870.0,110860.0,1.27056869]
[1747996841793,0.04101884,110870.0,110860.0,1.27056869]
[1747996842253,0.0167,110870.0,110860.0,1.27056869]
[1747996842699,0.0167,110870.0,110860.0,1.61056869]
[1747996842909,0.0167,110870.0,110860.0,2.56280369]
[1747996843872,0.032,110870.0,110860.0,2.56280369]
[1747996844101,0.04101884,110870.0,110860.0,2.56280369]
[1747996844798,0.01001884,110870.0,110860.0,2.56280369]
[1747996845189,0.02611884,110870.0,110860.0,2.56280369]
[1747996846271,0.0171,110870.0,110860.0,2.56280369]
[1747996846681,0.04141884,110870.0,110860.0,2.56280369]
[1747996846885,0.0324,110870.0,110860.0,2.56280369]
[1747996848888,0.04141884,110870.0,110860.0,2.56280369]
[1747996849086,0.0324,110870.0,110860.0,2.56280369]
[1747996849874,0.04141884,110870.0,110860.0,2.56280369]
[1747996850551,0.04141884,110870.0,110860.0,2.54399969]
[1747996850771,0.0324,110870.0,110860.0,2.54399969]
[1747996851011,0.04141884,110870.0,110860.0,1.90271969]
[1747996851230,0.04141884,110870.0,110860.0,2.54399969]
[1747996851441,0.0324,110870.0,110860.0,2.54399969]
[1747996851672,0.001,110870.0,110860.0,2.54399969]
[1747996851883,0.001,110870.0,110860.0,2.63354525]
[1747996852088,0.001,110870.0,110860.0,2.63384525]
[1747996852328,0.001,110870.0,110860.0,2.63354525]
[1747996852741,0.001,110870.0,110860.0,2.63384525]
[1747996854437,0.001,110870.0,110860.0,2.42641711]
[1747996854618,0.001,110870.0,110860.0,2.60277649]
[1747996855046,0.001,110870.0,110860.0,2.62983691]
[1747996857150,0.001,110870.0,110860.0,2.62953691]
[1747996860901,0.001,110870.0,110860.0,2.61188586]
[1747996861103,0.001,110870.0,110860.0,2.62992556]
[1747996862011,0.031,110880.0,110870.0,0.20744917]
[1747996862355,0.031,110880.0,110870.0,2.84537873]
[1747996862905,0.031,110880.0,110870.0,2.85991958]
[1747996863383,0.032,110880.0,110870.0,2.85991958]
[1747996870190,0.032,110880.0,110870.0,3.22427958]
[1747996874849,0.032,110880.0,110870.0,3.56427958]
[1747996875985,0.032,110880.0,110870.0,3.95347958]
[1747996877366,0.0183,110890.0,110880.0,0.56197131]
[1747996877569,0.0183,110890.0,110880.0,2.08876131]
[1747996877771,0.0183,110890.0,110880.0,2.03045531]
[1747996879104,0.0183,110890.0,110880.0,2.03145531]
[1747996879321,0.0183,110890.0,110880.0,1.74539631]
[1747996880438,0.0337,110890.0,110880.0,1.74539631]
[1747996880737,0.0337,110890.0,110880.0,1.70936031]
[1747996880939,0.0337,110890.0,110880.0,2.07472031]
[1747996885662,0.0337,110890.0,110880.0,2.46388031]
[1747996888789,0.0337,110890.0,110880.0,2.45109705]
[1747996894714,0.0337,110890.0,110880.0,2.34701905]
[1747996896755,0.0337,110890.0,110880.0,2.31009094]
[1747996896962,0.23209422,110890.0,110880.0,0.75176689]
[1747996897185,0.30424755,110890.0,110880.0,0.39120689]
[1747996897396,0.39379311,110890.0,110880.0,0.39120689]
[1747996897601,0.22159377,110880.0,110870.0,0.36056]
[1747996897813,0.31113933,110880.0,110870.0,0.63084]
[1747996898447,0.31113933,110880.0,110870.0,0.97084]
[1747996898875,0.22121084,110870.0,110860.0,0.37469653]
[1747996899080,0.3097564,110870.0,110860.0,0.64497653]
[1747996899330,0.3097564,110870.0,110860.0,0.98497653]
[1747996899546,0.3087564,110870.0,110860.0,0.98497653]
[1747996899756,0.3077564,110870.0,110860.0,0.98497653]
[1747996900165,0.3087564,110870.0,110860.0,0.98497653]
[1747996900551,0.3097564,110870.0,110860.0,0.98497653]
[1747996901485,0.3097564,110870.0,110860.0,0.97088]
[1747996904070,0.31877572,110870.0,110860.0,1.16030794]
[1747996905784,0.3097564,110870.0,110860.0,1.15128772]
[1747996908512,0.3097564,110870.0,110860.0,0.88100772]
[1747996908692,0.3097564,110870.0,110860.0,1.1603481]
[1747996908893,0.3097564,110870.0,110860.0,0.7006]
[1747996909201,0.3097564,110870.0,110860.0,1.16034802]
[1747996909648,0.3097564,110870.0,110860.0,0.97092]
[1747996910023,0.3097564,110870.0,110860.0,1.1603481]
[1747996911528,0.303737,110870.0,110860.0,1.1603481]
[1747996911741,0.303737,110870.0,110860.0,0.97092]
[1747996912342,0.303737,110870.0,110860.0,1.1603481]
[1747996912543,0.303737,110870.0,110860.0,1.1693684]
[1747996914391,0.303737,110870.0,110860.0,0.5384884]
[1747996914595,0.303737,110870.0,110860.0,1.1694884]
[1747996914814,0.303737,110870.0,110860.0,1.15144772]
[1747996915140,0.303737,110870.0,110860.0,1.1604681]
[1747996917060,0.13236496,110870.0,110860.0,1.18752819]
[1747996917284,0.15040361,110870.0,110860.0,1.18752819]
[1747996917490,0.33981462,110870.0,110860.0,1.17850838]
[1747996917711,0.04281916,110870.0,110860.0,0.55652835]
[1747996917899,0.06085748,110870.0,110860.0,1.19638816]
[1747996918147,0.25026841,110870.0,110860.0,1.18736835]
[1747996918356,0.25928798,110870.0,110860.0,1.18736835]
[1747996918562,0.25928798,110870.0,110860.0,1.19638824]
[1747996918770,0.25026906,110870.0,110860.0,1.16932832]
[1747996919456,0.2412499,110870.0,110860.0,1.16932832]
[1747996920120,0.2412499,110870.0,110860.0,1.1693284]
[1747996920594,0.22321101,110870.0,110860.0,0.97088]
[1747996923063,0.22321101,110870.0,110860.0,0.34004]
[1747996923291,0.22321101,110870.0,110860.0,0.97092]
[1747996929237,0.22321101,110870.0,110860.0,0.97096]
[1747996930283,0.31275657,110870.0,110860.0,0.97096]
[1747996931886,0.31275657,110870.0,110860.0,0.7006]
[1747996932083,0.31275657,110870.0,110860.0,0.34004]
[1747996932295,0.31275657,110870.0,110860.0,0.6104]
[1747996940378,0.31275657,110870.0,110860.0,0.34004]
[1747996940597,0.31275657,110870.0,110860.0,0.6104]
[1747996940758,0.31275657,110870.0,110860.0,0.34004]
[1747996940953,0.31275657,110870.0,110860.0,0.6104]
[1747996949701,0.31275657,110870.0,110860.0,0.61033849]
[1747996949827,0.31275657,110870.0,110860.0,0.60968412]
[1747996950030,0.31275657,110870.0,110860.0,0.60903448]
[1747996952864,0.31275657,110870.0,110860.0,0.33867448]
[1747996953050,0.31275657,110870.0,110860.0,0.60903448]
[1747996955829,0.23216597,110850.0,110840.0,0.34204]
[1747996956030,0.23216597,110850.0,110840.0,0.97269104]
[1747996956457,0.002,110870.0,110860.0,0.22916789]
[1747996956665,0.001,110870.0,110860.0,1.40172289]
[1747996956872,0.001,110870.0,110860.0,1.24233889]
[1747996957084,0.01903824,110870.0,110860.0,0.22426789]
[1747996957287,0.001,110870.0,110860.0,1.17838089]
[1747996957730,0.05267355,110880.0,110870.0,0.54744917]
[1747996958968,0.01803645,110880.0,110870.0,0.54744917]
[1747996959172,0.02705496,110880.0,110870.0,0.54744917]
[1747996959349,0.02003645,110880.0,110870.0,0.54744917]
[1747996959552,0.02003645,110880.0,110870.0,0.56384917]
[1747996959553,0.002,110880.0,110870.0,0.56384917]
[1747996959757,0.004,110880.0,110870.0,0.56484917]
[1747996959919,0.02203645,110880.0,110870.0,0.56484917]
[1747996960120,0.0130181,110880.0,110870.0,0.56484917]
[1747996960436,0.004,110880.0,110870.0,0.56484917]
[1747996960869,0.01301818,110880.0,110870.0,0.56484917]
[1747996961028,0.02203653,110880.0,110870.0,0.56484917]
[1747996962269,0.03105504,110880.0,110870.0,0.56484917]
[1747996962680,0.01301818,110880.0,110870.0,0.56484917]
[1747996962857,0.02215916,110880.0,110870.0,0.33511569]
[1747996963205,0.02215908,110880.0,110870.0,0.54256486]
[1747996963883,0.02203645,110880.0,110870.0,0.54244223]
[1747996964182,0.03105488,110880.0,110870.0,0.54244223]
[1747996964396,0.0310548,110880.0,110870.0,0.54244223]
[1747996964899,0.04007323,110880.0,110870.0,0.54244223]
[1747996966123,0.04007323,110880.0,110870.0,0.52604223]
[1747996966524,0.06639182,110880.0,110870.0,0.79636223]
[1747996966730,0.05737323,110880.0,110870.0,0.79636223]
[1747996966874,0.06639182,110880.0,110870.0,0.79636223]
[1747996967383,0.07377364,110880.0,110870.0,0.47876917]
[1747996969030,0.05737364,110880.0,110870.0,0.47876917]
[1747996971212,0.05737364,110880.0,110870.0,0.81876917]
[1747996971934,0.06639231,110880.0,110870.0,0.81876917]
[1747996972138,0.24676749,110880.0,110870.0,0.81876917]
[1747996975578,0.26296749,110880.0,110870.0,0.81876925]
[1747996976916,0.26296797,110880.0,110870.0,0.81876925]
[1747996978022,0.26296797,110880.0,110870.0,1.17892925]
[1747996978561,0.24676797,110880.0,110870.0,1.17892925]
[1747996979064,0.24676797,110880.0,110870.0,0.65580811]
[1747996979270,0.05737404,110880.0,110870.0,0.86325728]
[1747996979482,0.23774922,110880.0,110870.0,0.86325728]
[1747996979656,0.24676797,110880.0,110870.0,0.86325728]
[1747996980204,0.24676797,110880.0,110870.0,1.13357728]
[1747996982602,0.23774962,110880.0,110870.0,0.49407828]
[1747996982792,0.24563119,110880.0,110870.0,1.1150592]
[1747996982954,0.24563119,110880.0,110870.0,0.4850592]
[1747996983154,0.24563119,110880.0,110870.0,1.1150592]
[1747996986176,0.22759393,110880.0,110870.0,0.91662903]
[1747996986386,0.22759393,110880.0,110870.0,1.10603996]
[1747996986876,0.22759393,110880.0,110870.0,1.11505936]
[1747996987045,0.22759393,110880.0,110870.0,1.12407868]
[1747996988017,0.22759393,110880.0,110870.0,1.13309792]
[1747996988228,0.22759393,110880.0,110870.0,1.14211708]
[1747996988405,0.21069393,110880.0,110870.0,1.14211708]
[1747996988773,0.22889393,110880.0,110870.0,1.14211708]
[1747996990871,0.22889393,110880.0,110870.0,1.13309792]
[1747996991284,0.22889393,110880.0,110870.0,0.50309792]
[1747996991478,0.22889393,110880.0,110870.0,1.13305792]
[1747996992362,0.22889393,110880.0,110870.0,1.14207708]
[1747996992563,0.23791244,110880.0,110870.0,1.14207708]
[1747996992843,0.23791244,110880.0,110870.0,1.13305759]
[1747996994467,0.23791244,110880.0,110870.0,1.14207667]
[1747996995835,0.05753678,110880.0,110870.0,1.14207627]
[1747996996117,0.2559493,110880.0,110870.0,1.14207627]
[1747996996525,0.2377493,110880.0,110870.0,1.14207627]
[1747996996733,0.01301802,110880.0,110870.0,1.60654127]
[1747996996965,0.01301802,110880.0,110870.0,1.60658796]
[1747996997199,0.0220362,110880.0,110870.0,1.62338796]
[1747996997865,0.01301802,110880.0,110870.0,1.60658796]
[1747996998082,0.01301802,110880.0,110870.0,1.62338796]
[1747996998083,0.004,110880.0,110870.0,1.62338796]
[1747996998293,0.004,110880.0,110870.0,1.63118796]
[1747996999202,0.002,110880.0,110870.0,1.63118796]
[1747996999423,0.004,110880.0,110870.0,1.63218796]
[1747996999641,0.002,110880.0,110870.0,1.63218796]
[1747996999902,0.004,110880.0,110870.0,1.63318796]
[1747997001500,0.004,110880.0,110870.0,1.62538796]
[1747997005056,0.004,110880.0,110870.0,2.01458796]
[1747997006456,0.004,110880.0,110870.0,1.99778796]
[1747997009184,0.004,110880.0,110870.0,2.01458796]
[1747997009932,0.004,110880.0,110870.0,1.99778796]
[1747997011612,0.0215,110880.0,110870.0,1.99778796]
[1747997015537,0.004,110880.0,110870.0,1.99778796]
[1747997018226,0.004,110880.0,110870.0,2.08733352]
[1747997020940,0.0224,110880.0,110870.0,2.08733352]
[1747997026820,0.0402,110880.0,110870.0,2.08733352]
[1747997028753,0.0224,110880.0,110870.0,2.08733352]
[1747997033680,0.0224,110880.0,110870.0,1.81701352]
[1747997033885,0.0358,110880.0,110870.0,2.08529352]
[1747997034121,0.0368,110880.0,110870.0,2.08529352]
[1747997034686,0.001,110880.0,110870.0,2.10339352]
[1747997034902,0.002,110890.0,110880.0,0.56197131]
[1747997035149,0.002,110890.0,110880.0,0.58007131]
[1747997035361,0.0179,110900.0,110890.0,0.54741176]
[1747997035549,0.0384,110910.0,110900.0,0.54739306]
[1747997036266,0.03891004,110910.0,110900.0,0.54739306]
[1747997036713,0.03891004,110910.0,110900.0,0.54743975]
[1747997036932,0.04091004,110910.0,110900.0,0.54843975]
[1747997037383,0.04291004,110910.0,110900.0,0.54943975]
[1747997044059,0.04291004,110910.0,110900.0,1.17847975]
[1747997044277,0.05192562,110910.0,110900.0,1.17847975]
[1747997046016,0.06094145,110910.0,110900.0,1.17847975]
[1747997046640,0.06995752,110910.0,110900.0,1.17847975]
[1747997046863,0.06094145,110910.0,110900.0,1.17847975]
[1747997047064,0.06995736,110910.0,110900.0,1.17847975]
[1747997047277,0.06094145,110910.0,110900.0,1.17847975]
[1747997047907,0.04291004,110910.0,110900.0,0.54943975]
[1747997048166,0.04291004,110910.0,110900.0,1.17843975]
[1747997048629,0.05192562,110910.0,110900.0,1.17843975]
[1747997048818,0.06094137,110910.0,110900.0,1.17843975]
[1747997050653,0.06995728,110910.0,110900.0,1.17843975]
[1747997051414,0.06995728,110910.0,110900.0,1.56755975]
[1747997051618,0.06094137,110910.0,110900.0,1.56755975]
[1747997051918,0.0699572,110910.0,110900.0,1.56755975]
[1747997052578,0.06094137,110910.0,110900.0,1.56755975]
[1747997053456,0.05192562,110910.0,110900.0,1.56755975]
[1747997054255,0.04291004,110910.0,110900.0,1.56755975]
[1747997055858,0.0519257,110910.0,110900.0,1.56755975]
[1747997056081,0.05192562,110910.0,110900.0,1.56755975]
[1747997056260,0.04291004,110910.0,110900.0,1.56755975]
[1747997062683,0.02441004,110910.0,110900.0,1.56755975]
[1747997062887,0.00651004,110910.0,110900.0,1.56755975]
[1747997063304,0.00651004,110910.0,110900.0,4.03448131]
[1747997063977,0.02703529,110960.0,110940.0,0.52929093]
[1747997064186,0.20035345,110970.0,110960.0,0.52925738]
[1747997064404,0.28989901,110970.0,110960.0,0.34]
[1747997064650,0.290037,110970.0,110960.0,0.34]
[1747997064861,0.290037,110970.0,110960.0,0.52024513]
[1747997065069,0.290037,110970.0,110960.0,0.53826939]
[1747997065215,0.290037,110970.0,110960.0,0.53831608]
[1747997065420,0.296037,110970.0,110960.0,0.53931608]
[1747997065622,0.296037,110970.0,110960.0,0.53030407]
[1747997065915,0.302037,110970.0,110960.0,0.54031616]
[1747997066343,0.296037,110970.0,110960.0,0.53931616]
[1747997066522,0.2910258,110970.0,110960.0,0.54035616]
[1747997067043,0.3274258,110970.0,110960.0,0.55010501]
[1747997067307,0.31241436,110970.0,110960.0,0.54009292]
[1747997067473,0.31841436,110970.0,110960.0,0.54109292]
[1747997067690,0.31841436,110970.0,110960.0,0.55010509]
[1747997068336,0.31841436,110970.0,110960.0,0.56812903]
[1747997068537,0.32742572,110970.0,110960.0,0.56812903]
[1747997068751,0.32742572,110970.0,110960.0,0.5591171]
[1747997068961,0.32142572,110970.0,110960.0,0.5581171]
[1747997069379,0.31742572,110970.0,110960.0,0.5571171]
[1747997069594,0.32042572,110970.0,110960.0,0.54810509]
[1747997069726,0.32042572,110970.0,110960.0,0.55711718]
[1747997069926,0.32042572,110970.0,110960.0,0.56612919]
[1747997070450,0.06857125,110970.0,110960.0,0.57514055]
[1747997070930,0.07257125,110970.0,110960.0,0.57614055]
[1747997071156,0.04553799,110970.0,110960.0,0.57614055]
[1747997071348,0.05454886,110970.0,110960.0,0.57614055]
[1747997071566,0.06355997,110970.0,110960.0,0.57614055]
[1747997072134,0.07257125,110970.0,110960.0,0.57614055]
[1747997076997,0.06355997,110970.0,110960.0,0.57614055]
[1747997077199,0.07257125,110970.0,110960.0,0.57614055]
[1747997077715,0.04553799,110970.0,110960.0,0.57614055]
[1747997077918,0.06355997,110970.0,110960.0,0.57614055]
[1747997078120,0.07257125,110970.0,110960.0,0.57614055]
[1747997078296,0.07257125,110970.0,110960.0,0.23614055]
[1747997078457,0.06355997,110970.0,110960.0,0.23614055]
[1747997078655,0.07257125,110970.0,110960.0,0.23614055]
[1747997079315,0.07257125,110970.0,110960.0,0.50626055]
[1747997080414,0.2618115,110970.0,110960.0,0.50626055]
[1747997080619,0.08158261,110970.0,110960.0,0.50626055]
[1747997081001,0.2618115,110970.0,110960.0,0.50626055]
[1747997081211,0.27082294,110970.0,110960.0,0.50626055]
[1747997082473,0.07257125,110970.0,110960.0,0.50626055]
[1747997082689,0.08158261,110970.0,110960.0,0.50626055]
[1747997083111,0.2618115,110970.0,110960.0,0.22712887]
[1747997083320,0.09059405,110970.0,110960.0,0.50626023]
[1747997084583,0.09059405,110970.0,110960.0,0.01802353]
[1747997084789,0.09059405,110970.0,110960.0,0.20728059]
[1747997084968,0.27082294,110970.0,110960.0,0.20728059]
[1747997085908,0.27082294,110970.0,110960.0,0.49592855]
[1747997086649,0.27082294,110970.0,110960.0,0.83592855]
[1747997086860,0.27082294,110970.0,110960.0,0.83592896]
[1747997086861,0.26181207,110970.0,110960.0,0.83592896]
[1747997087068,0.26181207,110970.0,110960.0,0.84494072]
[1747997090500,0.26181207,110970.0,110960.0,1.20322072]
[1747997092246,0.06356038,110970.0,110960.0,1.20322072]
[1747997092466,0.06356038,110970.0,110960.0,1.20322031]
[1747997092641,0.07257174,110970.0,110960.0,1.20322031]
[1747997093973,0.07257174,110970.0,110960.0,1.20326031]
[1747997097827,0.25280063,110970.0,110960.0,1.19256571]
[1747997098046,0.25280063,110970.0,110960.0,1.20326031]
[1747997098807,0.26181207,110970.0,110960.0,1.20326031]
[1747997099355,0.08158318,110970.0,110960.0,1.20326031]
[1747997100038,0.05454886,110970.0,110960.0,1.20326031]
[1747997100245,0.07257117,110970.0,110960.0,1.20326031]
[1747997100631,0.26181142,110970.0,110960.0,1.20326031]
[1747997101181,0.07257109,110970.0,110960.0,1.20326031]
[1747997101414,0.05387109,110970.0,110960.0,1.20326031]
[1747997101617,0.04485989,110970.0,110960.0,1.20326031]
[1747997101863,0.05387109,110970.0,110960.0,1.20326031]
[1747997102075,0.06288237,110970.0,110960.0,1.20326031]
[1747997102280,0.05387109,110970.0,110960.0,1.20326031]
[1747997102490,0.00913799,110970.0,110960.0,1.20326031]
[1747997102697,0.01814878,110970.0,110960.0,1.20326031]
[1747997102906,0.02715973,110970.0,110960.0,1.20326031]
[1747997103351,0.04465973,110970.0,110960.0,1.20326031]
[1747997103557,0.07107076,110970.0,110960.0,1.20326031]
[1747997103767,0.08008196,110970.0,110960.0,0.57486031]
[1747997103972,0.07107076,110970.0,110960.0,1.20282031]
[1747997104183,0.08008196,110970.0,110960.0,1.20282031]
[1747997104918,0.08008196,110970.0,110960.0,1.19330436]
[1747997107630,0.08909324,110970.0,110960.0,1.19330436]
[1747997108894,0.08909324,110970.0,110960.0,0.82626857]
[1747997109483,0.08008196,110970.0,110960.0,0.84429235]
[1747997109644,0.08909324,110970.0,110960.0,0.85330436]
[1747997109848,0.08909324,110970.0,110960.0,0.35788]
[1747997109849,0.24228936,110970.0,110960.0,0.35788]
[1747997110049,0.24228936,110970.0,110960.0,4e-05]
[1747997110264,0.24228936,110970.0,110960.0,0.18028513]
[1747997110459,0.24228936,110970.0,110960.0,0.81721738]
[1747997110660,0.24228936,110970.0,110960.0,0.82622955]
[1747997110862,0.23327816,110970.0,110960.0,0.81721738]
[1747997111062,0.23327816,110970.0,110960.0,0.82622947]
[1747997111063,0.22426688,110970.0,110960.0,0.82622947]
[1747997111263,0.23327816,110970.0,110960.0,0.19830947]
[1747997111443,0.23327816,110970.0,110960.0,0.82622947]
[1747997111933,0.23327816,110970.0,110960.0,1.16622947]
[1747997112362,0.23327816,110970.0,110960.0,1.15721738]
[1747997112815,0.23327816,110970.0,110960.0,1.16622955]
[1747997113029,0.23327816,110970.0,110960.0,0.96796]
[1747997114648,0.23327816,110970.0,110960.0,0.96800686]
[1747997121015,0.32282372,110970.0,110960.0,8.686e-05]
[1747997121145,0.32282372,110970.0,110960.0,0.96808686]
[1747997121358,0.32282372,110970.0,110960.0,0.62808686]
[1747997133642,0.32282372,110970.0,110960.0,8.686e-05]
[1747997133862,0.32282372,110970.0,110960.0,0.27020686]
[1747997134073,0.32282372,110970.0,110960.0,8.686e-05]
[1747997134282,0.32282372,110970.0,110960.0,0.27020686]
[1747997145257,0.32282372,110970.0,110960.0,8.686e-05]
[1747997145459,0.32282372,110970.0,110960.0,0.27020686]
[1747997155370,0.32282372,110970.0,110960.0,8.686e-05]
[1747997163595,0.38152105,110970.0,110960.0,8.686e-05]
[1747997163764,0.34575816,110970.0,110960.0,8.686e-05]
[1747997164363,0.34275816,110970.0,110960.0,8.686e-05]
[1747997164520,0.33875816,110970.0,110960.0,8.686e-05]
[1747997164736,0.34175816,110970.0,110960.0,0.00108686]
[1747997164931,0.34675816,110970.0,110960.0,0.00208686]
[1747997165804,0.39945535,110970.0,110960.0,0.00208686]
[1747997169548,0.33836457,110970.0,110960.0,0.00208686]
[1747997179907,0.33836457,110970.0,110960.0,0.00204686]
[1747997180112,0.18027762,110940.0,110930.0,1.27789495]
[1747997180681,0.18027762,110940.0,110930.0,1.2598672]
[1747997180682,0.27883689,110940.0,110930.0,1.2598672]
[1747997180924,0.27883689,110940.0,110930.0,0.71967333]
[1747997181301,0.27983689,110940.0,110930.0,0.8999672]
[1747997181692,0.27983689,110940.0,110930.0,0.71967333]
[1747997181951,0.27983689,110940.0,110930.0,0.72067333]
[1747997183315,0.27983689,110940.0,110930.0,0.64852]
[1747997183723,0.27983689,110940.0,110930.0,0.65814378]
[1747997186356,0.27983689,110940.0,110930.0,0.83843765]
[1747997187942,0.27983689,110940.0,110930.0,0.84745234]
[1747997188164,0.27983689,110940.0,110930.0,0.01066378]
[1747997188375,0.27983689,110940.0,110930.0,0.63814378]
[1747997188376,0.32093689,110940.0,110930.0,0.63814378]
[1747997189301,0.31993689,110940.0,110930.0,0.63814378]
[1747997189534,0.31993689,110940.0,110930.0,0.2712]
[1747997189754,0.31993689,110940.0,110930.0,0.00104]
[1747997189986,0.31993689,110940.0,110930.0,4e-05]
[1747997190211,0.32093689,110940.0,110930.0,0.00966152]
[1747997190656,0.32193689,110940.0,110930.0,0.00104]
[1747997190789,0.32393689,110940.0,110930.0,0.00204]
[1747997191005,0.32193689,110940.0,110930.0,0.00104]
[1747997191228,0.32193689,110940.0,110930.0,0.00204]
[1747997191461,0.32593689,110940.0,110930.0,0.00204]
[1747997192233,0.32193689,110940.0,110930.0,0.00104]
[1747997192948,0.31993689,110940.0,110930.0,4e-05]
[1747997193367,0.32293689,110940.0,110930.0,0.00104]
[1747997194192,0.32793689,110940.0,110930.0,0.00204]
[1747997194860,0.32793689,110940.0,110930.0,0.01187803]
[1747997195064,0.32793689,110940.0,110930.0,0.00204]
[1747997197704,0.32771908,110940.0,110930.0,0.00204]
[1747997210414,0.30711908,110940.0,110930.0,0.00204]
[1747997210624,0.28661908,110940.0,110930.0,0.00204]
[1747997212104,0.30711908,110940.0,110930.0,0.00204]
[1747997215174,0.00901477,110920.0,110910.0,0.00785797]
[1747997215383,0.02704512,110920.0,110910.0,0.55753115]
[1747997215521,0.02704512,110920.0,110910.0,0.55527736]
[1747997216186,0.21637067,110920.0,110910.0,0.55527736]
[1747997216435,0.21842162,110920.0,110910.0,0.82647736]
[1747997216606,0.21842162,110920.0,110910.0,0.82747736]
[1747997217479,0.21842235,110920.0,110910.0,0.82747736]
[1747997218247,0.21842235,110920.0,110910.0,0.86297736]
[1747997218865,0.22743761,110920.0,110910.0,0.86297736]
[1747997220532,0.2184226,110920.0,110910.0,0.86297792]
[1747997220748,0.20940734,110920.0,110910.0,0.84847792]
[1747997221171,0.20940734,110920.0,110910.0,0.37992]
[1747997221392,0.200392,110920.0,110910.0,0.62912]
[1747997221597,0.200392,110920.0,110910.0,0.80944639]
[1747997221799,0.19137658,110920.0,110910.0,0.62912]
[1747997223506,0.19137658,110920.0,110910.0,0.8184627]
[1747997224158,0.19137658,110920.0,110910.0,0.62912]
[1747997225071,0.19137658,110920.0,110910.0,0.80944639]
[1747997226696,0.21207658,110920.0,110910.0,0.35892]
[1747997226904,0.32202214,110920.0,110910.0,0.002]
[1747997227539,0.32202214,110920.0,110910.0,0.27224]
[1747997229532,0.32202214,110920.0,110910.0,0.002]
[1747997236640,0.30162214,110920.0,110910.0,0.002]
[1747997237349,0.30162214,110920.0,110910.0,0.00204]
[1747997238250,0.18934254,110910.0,110900.0,0.10096593]
[1747997238686,0.18934254,110910.0,110900.0,0.11436593]
[1747997238961,0.18934254,110910.0,110900.0,0.10534929]
[1747997239276,0.01803222,110910.0,110900.0,0.11436585]
[1747997239484,0.00901558,110910.0,110900.0,0.37784228]
[1747997239664,0.02008139,110920.0,110910.0,0.23195861]
[1747997239877,0.20940694,110920.0,110910.0,0.58839861]
[1747997240563,0.20740694,110920.0,110910.0,0.57499861]
[1747997240723,0.20740694,110920.0,110910.0,0.58401452]
[1747997240911,0.02809624,110920.0,110910.0,0.60643027]
[1747997241321,0.02809624,110920.0,110910.0,0.60647027]
[1747997241546,0.0190809,110920.0,110910.0,0.60647027]
[1747997241752,0.02809616,110920.0,110910.0,0.60647027]
[1747997241952,0.0401115,110920.0,110910.0,0.60647027]
[1747997243840,0.00405095,110920.0,110910.0,0.94647027]
[1747997244044,0.01306572,110920.0,110910.0,0.94647027]
[1747997244261,0.00405095,110920.0,110910.0,0.94647027]
[1747997245321,0.00405095,110920.0,110910.0,3.03862283]
[1747997246004,0.002,110930.0,110920.0,0.58135566]
[1747997246218,0.002,110930.0,110920.0,2.40971166]